bitfinex/quotes_BTCUSD_20250703
["timestamp","ask_amount","ask_price","bid_price","bid_amount"]
[1751559953428,0.52299518,109310.0,109300.0,0.0236]
[1751559953636,0.52299518,109310.0,109300.0,0.003]
[1751559957943,0.52299518,109310.0,109300.0,0.18598261]
[1751559958198,0.19211357,109310.0,109300.0,0.2485807]
[1751559958446,0.19211416,109310.0,109300.0,0.2485807]
[1751559958710,0.19211416,109310.0,109300.0,0.25772957]
[1751559959851,0.19211416,109310.0,109300.0,0.2485807]
[1751559960310,0.19211416,109310.0,109300.0,0.25772957]
[1751559960915,0.03697631,109330.0,109320.0,0.21459626]
[1751559961114,0.02783842,109330.0,109320.0,0.63934071]
[1751559961290,0.0004,109330.0,109320.0,0.63934071]
[1751559961505,0.02783842,109330.0,109320.0,0.26393778]
[1751559961705,0.01869197,109330.0,109320.0,0.73077764]
[1751559961910,0.00954586,109330.0,109320.0,0.73077764]
[1751559962084,0.00954586,109330.0,109320.0,0.73677764]
[1751559962293,0.02783817,109330.0,109320.0,0.73677764]
[1751559963901,0.03698462,109330.0,109320.0,0.73677764]
[1751559964106,0.027838,109330.0,109320.0,0.36137471]
[1751559964389,0.03698428,109330.0,109320.0,0.73677764]
[1751559964591,0.00954586,109330.0,109320.0,0.73677764]
[1751559964727,0.02783833,109330.0,109320.0,0.73677764]
[1751559965301,0.21991718,109330.0,109320.0,0.73677764]
[1751559965501,0.0004,109330.0,109320.0,1.11218057]
[1751559965618,0.0004,109330.0,109320.0,0.73677764]
[1751559965827,0.00954586,109330.0,109320.0,0.73677764]
[1751559966048,0.00954586,109330.0,109320.0,0.74584869]
[1751559966248,0.0004,109330.0,109320.0,0.74584869]
[1751559967123,0.0004,109330.0,109320.0,1.12125162]
[1751559968802,0.0004,109330.0,109320.0,0.74584869]
[1751559969452,0.0004,109330.0,109320.0,0.37044576]
[1751559969662,0.00954586,109330.0,109320.0,0.37044576]
[1751559969918,0.00954586,109330.0,109320.0,0.74584869]
[1751559970561,0.01869189,109330.0,109320.0,0.74584869]
[1751559970766,0.00954586,109330.0,109320.0,0.74584869]
[1751559971503,0.0004,109330.0,109320.0,1.12125162]
[1751559971708,0.0004,109330.0,109320.0,1.13579247]
[1751559972140,0.0004,109330.0,109320.0,1.76909247]
[1751559972689,0.0004,109330.0,109320.0,1.78742247]
[1751559973094,0.0004,109330.0,109320.0,1.78142247]
[1751559973298,0.0004,109330.0,109320.0,1.78342247]
[1751559973495,0.0004,109330.0,109320.0,1.78942247]
[1751559973948,0.0004,109330.0,109320.0,1.78742247]
[1751559974151,0.0004,109330.0,109320.0,1.79242247]
[1751559975012,0.1004,109340.0,109330.0,1.35911795]
[1751559975223,0.1004,109340.0,109330.0,1.07515195]
[1751559975652,0.1004,109340.0,109330.0,1.36845195]
[1751559976458,1e-08,109340.0,109330.0,1.74385488]
[1751559977068,1e-08,109340.0,109330.0,1.79385488]
[1751559977280,0.0004,109350.0,109340.0,0.24322285]
[1751559977477,0.00014171,109350.0,109340.0,1.10963564]
[1751559977735,1e-08,109350.0,109340.0,1.15963564]
[1751559977900,1e-08,109350.0,109340.0,1.18711664]
[1751559978111,1e-08,109350.0,109340.0,1.13711664]
[1751559979306,1e-08,109350.0,109340.0,0.38631078]
[1751559979512,1e-08,109350.0,109340.0,1.07423271]
[1751559979712,1e-08,109350.0,109340.0,1.05969186]
[1751559979914,0.00100001,109350.0,109340.0,0.72569186]
[1751559980112,0.01014428,109350.0,109340.0,0.35028893]
[1751559980318,0.00100001,109350.0,109340.0,0.72569186]
[1751559980521,1e-08,109350.0,109340.0,0.71969186]
[1751559981232,1e-08,109350.0,109340.0,1.10963564]
[1751559981389,1e-08,109350.0,109340.0,1.44963564]
[1751559981595,1e-08,109350.0,109340.0,1.74293564]
[1751559981851,1e-08,109350.0,109340.0,1.74693564]
[1751559985702,1e-08,109350.0,109340.0,1.77441864]
[1751559986669,1e-08,109350.0,109340.0,1.82441864]
[1751559987401,1e-08,109350.0,109340.0,2.32241864]
[1751559987649,1e-08,109350.0,109340.0,2.34074864]
[1751559988703,1e-08,109350.0,109340.0,2.36881228]
[1751559988878,1e-08,109350.0,109340.0,2.31881228]
[1751559990050,1e-08,109350.0,109340.0,2.31901228]
[1751559990283,1e-08,109350.0,109340.0,2.36901228]
[1751559990738,1e-08,109350.0,109340.0,1.61820642]
[1751559991988,1e-08,109350.0,109340.0,1.59987642]
[1751559993388,1e-08,109350.0,109340.0,1.10187642]
[1751560001275,1e-08,109350.0,109340.0,1.17508527]
[1751560002472,1e-08,109350.0,109340.0,1.19341527]
[1751560002618,1e-08,109350.0,109340.0,1.17508527]
[1751560005271,1e-08,109350.0,109340.0,1.67308527]
[1751560007718,0.1004,109360.0,109350.0,0.31807362]
[1751560007719,1e-08,109360.0,109350.0,0.31807362]
[1751560007933,1e-08,109370.0,109360.0,0.60805438]
[1751560008159,1e-08,109370.0,109360.0,1.45029717]
[1751560008560,1e-08,109370.0,109360.0,1.47777517]
[1751560009044,1e-08,109370.0,109360.0,1.48419629]
[1751560009824,1e-08,109370.0,109360.0,1.48619629]
[1751560010623,1e-08,109370.0,109360.0,1.06759336]
[1751560011033,1e-08,109370.0,109360.0,1.08869336]
[1751560011243,1e-08,109370.0,109360.0,1.40429336]
[1751560012536,1e-08,109370.0,109360.0,1.77969629]
[1751560013675,1e-08,109370.0,109360.0,1.78269629]
[1751560014701,0.0004,109390.0,109380.0,0.22481593]
[1751560014917,0.00054167,109390.0,109380.0,1.36677984]
[1751560015340,0.00054167,109390.0,109380.0,1.38727984]
[1751560017236,0.04374167,109390.0,109380.0,0.61597398]
[1751560017431,0.04374167,109390.0,109380.0,0.99137691]
[1751560018507,0.04374167,109390.0,109380.0,1.36677984]
[1751560019166,0.04374167,109390.0,109380.0,0.99137691]
[1751560019588,0.04374167,109390.0,109380.0,1.36677984]
[1751560019795,0.04374167,109390.0,109380.0,1.37582976]
[1751560020628,0.04374167,109390.0,109380.0,1.36677984]
[1751560022584,0.00054167,109390.0,109380.0,1.36677984]
[1751560022814,0.00054167,109390.0,109380.0,1.40867984]
[1751560023067,0.00054167,109390.0,109380.0,1.38717984]
[1751560025686,0.00054167,109390.0,109380.0,1.36677984]
[1751560026143,0.00054167,109390.0,109380.0,0.61597398]
[1751560026297,0.04444167,109390.0,109380.0,0.99137691]
[1751560026928,0.04444167,109390.0,109380.0,1.36677984]
[1751560028540,0.00054167,109390.0,109380.0,1.36677984]
[1751560028721,0.00054167,109390.0,109380.0,1.38827984]
[1751560029099,0.00054167,109390.0,109380.0,1.40947984]
[1751560029408,0.00054167,109390.0,109380.0,1.38827984]
[1751560030184,0.00054167,109390.0,109380.0,1.46148869]
[1751560030359,0.00054167,109390.0,109380.0,1.40947984]
[1751560031175,0.00054167,109390.0,109380.0,1.48268869]
[1751560031780,0.00054167,109390.0,109380.0,1.4826888]
[1751560035294,0.04154167,109390.0,109380.0,1.05942759]
[1751560035503,0.05982428,109390.0,109380.0,0.39115816]
[1751560035722,0.61805927,109390.0,109380.0,0.28984937]
[1751560035915,0.60891809,109390.0,109380.0,0.00642123]
[1751560036121,0.60891809,109390.0,109380.0,0.19841244]
[1751560036353,0.59977666,109390.0,109380.0,0.00642123]
[1751560036971,0.19199121,109380.0,109370.0,0.21943733]
[1751560037207,0.24513339,109380.0,109370.0,0.30815537]
[1751560037364,0.25427549,109380.0,109370.0,0.31729822]
[1751560037731,0.25427549,109380.0,109370.0,0.31729611]
[1751560037980,0.25427549,109380.0,109370.0,0.32643888]
[1751560038596,0.62053632,109380.0,109370.0,0.19843028]
[1751560038811,0.24513339,109380.0,109370.0,0.21671607]
[1751560038995,0.24513339,109380.0,109370.0,0.22585875]
[1751560039332,0.24513339,109380.0,109370.0,0.21671607]
[1751560039895,0.24513339,109380.0,109370.0,0.22585884]
[1751560040103,0.06228461,109380.0,109370.0,0.23500152]
[1751560040314,0.06228461,109380.0,109370.0,0.22857984]
[1751560040468,0.24513339,109380.0,109370.0,0.22857984]
[1751560041088,0.24513339,109380.0,109370.0,0.21943716]
[1751560041329,0.24513339,109380.0,109370.0,0.21029439]
[1751560042100,0.24513339,109380.0,109370.0,0.21943716]
[1751560042709,0.24513339,109380.0,109370.0,0.22857984]
[1751560044031,0.07142638,109380.0,109370.0,0.22857984]
[1751560044803,0.08056873,109380.0,109370.0,0.22857984]
[1751560044980,0.08056873,109380.0,109370.0,0.23859027]
[1751560045186,0.08056873,109380.0,109370.0,0.22857984]
[1751560045389,0.27255994,109380.0,109370.0,0.22857984]
[1751560046070,0.26341801,109380.0,109370.0,0.20115154]
[1751560046533,0.26341801,109380.0,109370.0,0.21029422]
[1751560047331,0.25427583,109380.0,109370.0,0.20115154]
[1751560047533,0.25427583,109380.0,109370.0,0.21029439]
[1751560047757,0.25427583,109380.0,109370.0,0.21943716]
[1751560047901,0.25427583,109380.0,109370.0,0.22857984]
[1751560049352,0.25427583,109380.0,109370.0,0.21029439]
[1751560049562,0.25427583,109380.0,109370.0,0.22030482]
[1751560049784,0.25427583,109380.0,109370.0,0.1828655]
[1751560049939,0.24513356,109380.0,109370.0,0.19200869]
[1751560050138,0.24513356,109380.0,109370.0,0.20115163]
[1751560051333,0.24513356,109380.0,109370.0,0.21029448]
[1751560052434,0.24513356,109380.0,109370.0,0.21943725]
[1751560053421,0.24513356,109380.0,109370.0,0.1828655]
[1751560053618,0.24513356,109380.0,109370.0,0.1920086]
[1751560053878,0.24513356,109380.0,109370.0,0.20115162]
[1751560054081,0.24513356,109380.0,109370.0,0.21029456]
[1751560054415,0.0609852,109370.0,109360.0,0.58591613]
[1751560054657,0.0609852,109370.0,109360.0,0.67735306]
[1751560055036,0.0609852,109370.0,109360.0,0.66820954]
[1751560055240,0.25299355,109370.0,109360.0,0.68649734]
[1751560055374,0.27127968,109370.0,109360.0,0.66821005]
[1751560055571,0.26213649,109370.0,109360.0,0.68749751]
[1751560055843,0.26213649,109370.0,109360.0,0.69664052]
[1751560056545,0.26213649,109370.0,109360.0,0.69764052]
[1751560056738,0.27127959,109370.0,109360.0,0.688497]
[1751560056968,0.27127951,109370.0,109360.0,0.688497]
[1751560057172,0.27127951,109370.0,109360.0,0.69764052]
[1751560057363,0.27127951,109370.0,109360.0,0.32223759]
[1751560057570,0.27127951,109370.0,109360.0,0.688497]
[1751560058011,0.26213649,109370.0,109360.0,0.688497]
[1751560058220,0.26213649,109370.0,109360.0,0.69764052]
[1751560058442,0.02742805,109370.0,109360.0,0.688497]
[1751560058617,0.21943657,109370.0,109360.0,0.6793534]
[1751560058820,0.22857967,109370.0,109360.0,0.6793534]
[1751560059027,0.21943657,109370.0,109360.0,0.688497]
[1751560059279,0.21943657,109370.0,109360.0,0.69764052]
[1751560059502,0.21943657,109370.0,109360.0,0.688497]
[1751560059803,0.21943657,109370.0,109360.0,0.68849692]
[1751560060723,0.22857976,109370.0,109360.0,0.6793534]
[1751560060925,0.22857967,109370.0,109360.0,0.688497]
[1751560061293,0.22857967,109370.0,109360.0,0.69764052]
[1751560061492,0.22857967,109370.0,109360.0,0.688497]
[1751560061939,0.22857967,109370.0,109360.0,0.69764052]
[1751560062773,0.22857967,109370.0,109360.0,0.09363693]
[1751560062981,0.96055455,109370.0,109360.0,0.0022]
[1751560063179,0.96907788,109370.0,109360.0,0.0022]
[1751560064132,0.96907788,109370.0,109360.0,0.0012]
[1751560064341,0.96907788,109370.0,109360.0,0.0002]
[1751560064755,0.98007788,109370.0,109360.0,0.0002]
[1751560065162,1.06651481,109370.0,109360.0,0.0002]
[1751560065570,1.08757178,109370.0,109360.0,0.0002]
[1751560068190,1.08755812,109370.0,109360.0,0.0002]
[1751560069583,1.49719375,109370.0,109360.0,1e-08]
[1751560069808,6.71811813,109370.0,109360.0,1e-08]
[1751560070035,6.77288039,109370.0,109360.0,1e-08]
[1751560070239,6.89341212,109370.0,109360.0,1e-08]
[1751560070446,6.85711309,109370.0,109360.0,1e-08]
[1751560071051,0.58278824,109350.0,109340.0,0.0002]
[1751560071262,1.45059767,109350.0,109340.0,0.0002]
[1751560071668,0.69979181,109350.0,109340.0,0.0002]
[1751560071872,1.45059767,109350.0,109340.0,0.0002]
[1751560072085,1.45259767,109350.0,109340.0,0.0002]
[1751560072301,1.45259767,109350.0,109340.0,0.0012]
[1751560073265,1.45259767,109350.0,109340.0,0.0002]
[1751560073684,0.57546128,109340.0,109330.0,1e-08]
[1751560073841,1.51168718,109340.0,109330.0,0.00014171]
[1751560074326,6.49631918,109340.0,109330.0,0.00014171]
[1751560075629,6.50233782,109340.0,109330.0,1e-08]
[1751560075840,6.57406653,109340.0,109330.0,1e-08]
[1751560076256,6.60147527,109340.0,109330.0,1e-08]
[1751560076680,1.7082802,109340.0,109330.0,1e-08]
[1751560076900,6.75133978,109340.0,109330.0,1e-08]
[1751560077099,6.73435844,109340.0,109330.0,1e-08]
[1751560077312,6.77010898,109340.0,109330.0,1e-08]
[1751560077519,0.05294812,109310.0,109300.0,0.0731897]
[1751560077724,0.23593157,109300.0,109290.0,0.0733897]
[1751560077926,0.6113345,109300.0,109290.0,0.07385876]
[1751560078102,0.63680816,109300.0,109290.0,0.07385876]
[1751560078454,0.63680933,109300.0,109290.0,0.07385876]
[1751560078864,0.63980933,109300.0,109290.0,0.07385876]
[1751560080002,0.65950695,109300.0,109290.0,0.07485876]
[1751560080197,0.28410402,109300.0,109290.0,0.08486919]
[1751560080442,0.28410402,109300.0,109290.0,0.07485876]
[1751560080649,0.22279997,109300.0,109290.0,0.07485876]
[1751560080820,0.03044613,109300.0,109290.0,0.41794393]
[1751560081020,0.55342932,109300.0,109290.0,0.39964492]
[1751560081220,0.55342932,109300.0,109290.0,0.00166906]
[1751560081221,0.91968354,109300.0,109290.0,0.00166906]
[1751560081700,0.91968354,109300.0,109290.0,0.20516841]
[1751560082082,0.01214862,109300.0,109290.0,0.41794393]
[1751560082242,0.0304457,109300.0,109290.0,0.41794393]
[1751560082473,0.03044578,109300.0,109290.0,0.41794393]
[1751560082854,0.03959474,109300.0,109290.0,0.41794393]
[1751560083241,0.03959474,109300.0,109290.0,0.41694393]
[1751560083440,0.04059474,109300.0,109290.0,0.42094393]
[1751560083863,0.03144578,109300.0,109290.0,0.42094393]
[1751560084067,0.04059474,109300.0,109290.0,0.42094393]
[1751560084271,0.04059474,109300.0,109290.0,0.42996809]
[1751560084601,0.21442932,109300.0,109290.0,0.32945522]
[1751560084734,0.20528061,109300.0,109290.0,0.34775456]
[1751560085795,0.02229749,109300.0,109290.0,0.35690394]
[1751560085952,0.03144586,109300.0,109290.0,0.35690394]
[1751560086314,0.57768337,109300.0,109290.0,0.13730599]
[1751560086496,0.57768337,109300.0,109290.0,0.00466906]
[1751560086690,0.20228044,109300.0,109290.0,0.00466906]
[1751560086917,0.57768337,109300.0,109290.0,0.00666906]
[1751560087241,0.01014862,109300.0,109290.0,0.34420468]
[1751560087389,0.01929717,109300.0,109290.0,0.35335406]
[1751560087625,0.02844554,109300.0,109290.0,0.35335406]
[1751560088521,0.01929683,109300.0,109290.0,0.35335406]
[1751560088651,0.01014837,109300.0,109290.0,0.35335406]
[1751560088849,0.001,109300.0,109290.0,0.72875699]
[1751560090978,0.01014837,109300.0,109290.0,0.72875699]
[1751560091392,0.001,109300.0,109290.0,0.72875699]
[1751560091588,0.001,109300.0,109290.0,0.74329784]
[1751560092989,0.001,109300.0,109290.0,0.71339784]
[1751560094426,0.001,109300.0,109290.0,1.08880077]
[1751560094678,0.001,109300.0,109290.0,0.71339784]
[1751560095125,0.001,109300.0,109290.0,1.08880077]
[1751560098278,0.001,109300.0,109290.0,1.42880077]
[1751560098989,0.001,109300.0,109290.0,1.43794677]
[1751560100131,0.001,109300.0,109290.0,1.44294677]
[1751560102282,0.0004,109310.0,109290.0,1.44294677]
[1751560102481,0.0004,109310.0,109300.0,0.73689697]
[1751560102685,0.0004,109310.0,109300.0,0.73460969]
[1751560103732,0.0004,109310.0,109300.0,0.36220676]
[1751560103889,0.0004,109310.0,109300.0,0.73760969]
[1751560105070,0.0014,109310.0,109300.0,0.73760969]
[1751560105535,0.0004,109310.0,109300.0,0.73760969]
[1751560105851,0.0014,109310.0,109300.0,0.74160969]
[1751560107695,0.0636893,109350.0,109340.0,0.02743633]
[1751560107901,0.40368888,109350.0,109340.0,0.30178893]
[1751560108104,0.15494352,109360.0,109350.0,0.21033277]
[1751560108282,0.16408721,109360.0,109350.0,0.21033277]
[1751560108484,0.72374981,109360.0,109350.0,0.20118841]
[1751560108694,0.06368879,109350.0,109340.0,0.28349779]
[1751560108904,0.0671611,109350.0,109340.0,0.29264323]
[1751560109249,0.06616102,109350.0,109340.0,0.30178893]
[1751560109753,0.06416102,109350.0,109340.0,0.30178893]
[1751560110409,0.08245041,109350.0,109340.0,0.30278893]
[1751560110748,0.07330563,109350.0,109340.0,0.30278893]
[1751560111175,0.06416102,109350.0,109340.0,0.30278893]
[1751560111570,0.07330563,109350.0,109340.0,0.30278893]
[1751560112179,0.00047231,109350.0,109340.0,0.30278893]
[1751560112386,0.00047231,109350.0,109340.0,0.72169186]
[1751560112949,0.00047231,109350.0,109340.0,0.73623271]
[1751560113962,0.00047231,109350.0,109340.0,0.36082978]
[1751560114597,0.00047231,109350.0,109340.0,0.32398893]
[1751560114830,0.06356119,109350.0,109340.0,0.30278893]
[1751560115221,0.07270597,109350.0,109340.0,0.32103174]
[1751560115386,0.08185083,109350.0,109340.0,0.33017693]
[1751560115585,0.06356119,109350.0,109340.0,0.33017693]
[1751560117520,0.07270588,109350.0,109340.0,0.33017693]
[1751560117682,0.06356119,109350.0,109340.0,0.33017693]
[1751560117885,0.07270588,109350.0,109340.0,0.33017693]
[1751560118032,0.04527231,109350.0,109340.0,0.33017693]
[1751560118233,0.02237231,109350.0,109340.0,0.33017693]
[1751560118492,0.0096165,109350.0,109340.0,0.33017693]
[1751560118711,0.00047231,109350.0,109340.0,0.33017693]
[1751560119573,0.00047231,109350.0,109340.0,0.84265031]
[1751560120582,0.00047231,109350.0,109340.0,0.37377693]
[1751560121287,0.00047231,109350.0,109340.0,0.85719116]
[1751560122315,1e-08,109350.0,109340.0,0.85719116]
[1751560122535,1e-08,109350.0,109340.0,1.22237737]
[1751560122744,0.00040001,109350.0,109340.0,1.22237737]
[1751560122955,0.00040001,109350.0,109340.0,1.15049116]
[1751560123367,0.00040001,109350.0,109340.0,1.51797416]
[1751560123982,0.00040001,109350.0,109340.0,1.59086037]
[1751560124218,0.00040001,109350.0,109340.0,1.58986037]
[1751560124696,0.00040001,109350.0,109340.0,1.59286037]
[1751560125410,0.00040001,109350.0,109340.0,1.52397416]
[1751560125613,0.00040001,109350.0,109340.0,1.59686037]
[1751560127568,0.00040001,109350.0,109340.0,1.52397416]
[1751560128598,0.00040001,109350.0,109340.0,1.49649116]
[1751560129188,0.00040001,109350.0,109340.0,1.50289418]
[1751560130010,0.00040001,109350.0,109340.0,1.55753102]
[1751560130216,0.00040001,109350.0,109340.0,1.54299033]
[1751560130443,0.00040001,109350.0,109340.0,1.55753118]
[1751560130637,0.00040001,109350.0,109340.0,1.0886578]
[1751560130983,0.00040001,109350.0,109340.0,1.55753118]
[1751560132425,0.00040001,109350.0,109340.0,1.26423118]
[1751560136101,0.00040001,109350.0,109340.0,1.257828]
[1751560136306,0.00040001,109350.0,109340.0,1.26424012]
[1751560138087,0.1004,109360.0,109350.0,0.22487362]
[1751560138299,0.1004,109360.0,109350.0,0.89114652]
[1751560138300,0.10054164,109360.0,109350.0,0.89114652]
[1751560139443,0.10054164,109360.0,109350.0,0.89315164]
[1751560139742,0.10054164,109360.0,109350.0,0.89515164]
[1751560139939,0.10054164,109360.0,109350.0,0.84040117]
[1751560141458,0.10054164,109360.0,109350.0,0.91328738]
[1751560144316,0.10054164,109360.0,109350.0,1.20658738]
[1751560145465,0.10054164,109360.0,109350.0,1.18448738]
[1751560145890,0.10054164,109360.0,109350.0,1.09060837]
[1751560146624,0.10054164,109360.0,109350.0,1.11310837]
[1751560146833,0.10054164,109360.0,109350.0,1.09060837]
[1751560147036,0.10054164,109360.0,109350.0,1.06790837]
[1751560147355,0.10054164,109360.0,109350.0,1.04981992]
[1751560147994,0.12274164,109360.0,109350.0,0.67482555]
[1751560148912,0.10054164,109360.0,109350.0,0.67482555]
[1751560149479,0.10054164,109360.0,109350.0,1.06790837]
[1751560150299,0.10054164,109360.0,109350.0,0.77460837]
[1751560150523,0.10054164,109360.0,109350.0,0.70172216]
[1751560151445,0.10054164,109360.0,109350.0,0.77460837]
[1751560151902,0.12334164,109360.0,109350.0,0.399614]
[1751560152085,0.14424164,109360.0,109350.0,0.32672779]
[1751560152323,0.14424164,109360.0,109350.0,0.33673822]
[1751560152525,0.10054164,109360.0,109350.0,0.70172216]
[1751560153556,0.10054164,109360.0,109350.0,0.77460837]
[1751560153761,0.10054164,109360.0,109350.0,0.70172216]
[1751560154423,0.10054164,109360.0,109350.0,0.77460837]
[1751560155939,0.10054164,109360.0,109350.0,0.82050837]
[1751560156508,0.10054164,109360.0,109350.0,1.19550274]
[1751560156634,0.10054164,109360.0,109350.0,1.12261653]
[1751560157027,0.10054164,109360.0,109350.0,1.19575437]
[1751560159458,0.10054164,109360.0,109350.0,1.18933713]
[1751560164939,0.10054164,109360.0,109350.0,1.11619929]
[1751560166521,0.10054164,109360.0,109350.0,1.52933839]
[1751560166522,1e-08,109360.0,109350.0,1.52933839]
[1751560166738,1e-08,109360.0,109350.0,1.54770663]
[1751560167337,1e-08,109360.0,109350.0,1.59570663]
[1751560167566,1e-08,109360.0,109350.0,1.59370663]
[1751560167841,1e-08,109360.0,109350.0,1.60070663]
[1751560168269,1e-08,109360.0,109350.0,1.55070663]
[1751560168463,1e-08,109360.0,109350.0,1.60070663]
[1751560168722,1e-08,109360.0,109350.0,1.17571226]
[1751560168934,1e-08,109360.0,109350.0,1.15730807]
[1751560169147,1e-08,109360.0,109350.0,1.11996722]
[1751560169371,0.04320001,109360.0,109350.0,1.02376407]
[1751560169605,0.04320001,109360.0,109350.0,0.3087697]
[1751560170000,0.04320001,109360.0,109350.0,0.378147]
[1751560170131,0.04320001,109360.0,109350.0,0.36360615]
[1751560170534,0.04320001,109360.0,109350.0,0.378147]
[1751560172105,0.04320001,109360.0,109350.0,0.378347]
[1751560173080,0.04320001,109360.0,109350.0,0.75334137]
[1751560175706,0.05234353,109360.0,109350.0,0.34551718]
[1751560175935,0.61936423,109360.0,109350.0,0.0072]
[1751560176436,0.24436986,109360.0,109350.0,0.20838857]
[1751560176840,0.23522617,109360.0,109350.0,0.20138857]
[1751560176957,0.61322054,109360.0,109350.0,0.20138857]
[1751560177180,0.61122054,109360.0,109350.0,0.20138857]
[1751560177610,0.61222054,109360.0,109350.0,0.20138857]
[1751560178036,0.61222054,109360.0,109350.0,0.21053318]
[1751560178490,0.23722617,109360.0,109350.0,0.21053318]
[1751560179160,0.23722617,109360.0,109350.0,0.20138857]
[1751560179381,0.23822617,109360.0,109350.0,0.20138857]
[1751560181265,0.23822617,109360.0,109350.0,0.21053318]
[1751560182107,0.23822617,109360.0,109350.0,0.30197011]
[1751560182514,0.61322054,109360.0,109350.0,0.28368081]
[1751560182718,0.61322054,109360.0,109350.0,0.29282567]
[1751560183097,0.61322054,109360.0,109350.0,0.31111514]
[1751560184063,0.61322054,109360.0,109350.0,0.32025933]
[1751560184269,0.61322054,109360.0,109350.0,0.31111447]
[1751560184514,0.61322054,109360.0,109350.0,0.28368081]
[1751560184727,0.61322054,109360.0,109350.0,0.29282567]
[1751560186130,0.61322054,109360.0,109350.0,0.10078187]
[1751560186340,0.61322054,109360.0,109350.0,0.09163693]
[1751560187166,0.61322054,109360.0,109350.0,0.0002]
[1751560187507,0.0553437,109360.0,109350.0,0.27453587]
[1751560187707,0.00300001,109360.0,109350.0,0.67696407]
[1751560187913,0.01214353,109360.0,109350.0,0.67696407]
[1751560188139,0.0212873,109360.0,109350.0,0.67696407]
[1751560188541,0.03043116,109360.0,109350.0,0.3019697]
[1751560188759,0.26635749,109360.0,109350.0,0.30196986]
[1751560188995,0.26675749,109360.0,109350.0,0.29282534]
[1751560189347,0.07473116,109360.0,109350.0,0.30196986]
[1751560189563,0.07473124,109360.0,109350.0,0.31111422]
[1751560189737,0.06558722,109360.0,109350.0,0.31111422]
[1751560189939,0.07473116,109360.0,109350.0,0.31111422]
[1751560190350,0.07473108,109360.0,109350.0,0.31111422]
[1751560190990,0.08387502,109360.0,109350.0,0.31111422]
[1751560191202,0.27590135,109360.0,109350.0,0.31111422]
[1751560192132,0.26675783,109360.0,109350.0,0.30196986]
[1751560192304,0.63260851,109360.0,109350.0,0.30196986]
[1751560192467,0.25761414,109360.0,109350.0,0.3111143]
[1751560193706,0.24847028,109360.0,109350.0,0.28368073]
[1751560194122,0.06558764,109360.0,109350.0,0.3019697]
[1751560194292,0.07473108,109360.0,109350.0,0.3019697]
[1751560194702,0.0838751,109360.0,109350.0,0.3019697]
[1751560194941,0.26675732,109360.0,109350.0,0.3019697]
[1751560195133,0.27590143,109360.0,109350.0,0.3019697]
[1751560195576,0.07473108,109360.0,109350.0,0.3019697]
[1751560195982,0.26675732,109360.0,109350.0,0.3019697]
[1751560197213,0.26675732,109360.0,109350.0,0.30196986]
[1751560197409,0.26675732,109360.0,109350.0,0.3111143]
[1751560197614,0.27590143,109360.0,109350.0,0.3111143]
[1751560198027,0.64175236,109360.0,109350.0,0.29282534]
[1751560198652,0.63260867,109360.0,109350.0,0.28368073]
[1751560198852,0.62346473,109360.0,109350.0,0.29282551]
[1751560199068,0.61432071,109360.0,109350.0,0.29282551]
[1751560199414,0.61432071,109360.0,109350.0,0.30197012]
[1751560199566,0.61432071,109360.0,109350.0,0.21053327]
[1751560199771,0.61432071,109360.0,109350.0,0.21967788]
[1751560200002,0.61432071,109360.0,109350.0,0.20138858]
[1751560200377,0.61432071,109360.0,109350.0,0.18309894]
[1751560200579,0.6051766,109360.0,109350.0,0.0002]
[1751560201723,0.63936037,109360.0,109350.0,0.0002]
[1751560201951,0.97936037,109360.0,109350.0,0.0002]
[1751560203558,0.9451766,109360.0,109350.0,0.0002]
[1751560206949,0.57018223,109360.0,109350.0,0.0002]
[1751560207173,0.9451766,109360.0,109350.0,0.0002]
[1751560213511,1.35435474,109360.0,109350.0,0.0002]
[1751560213935,1.0707973,109360.0,109350.0,0.0002]
[1751560214184,1.03661353,109360.0,109350.0,0.0002]
[1751560224277,0.66161916,109360.0,109350.0,0.0002]
[1751560224433,1.03661353,109360.0,109350.0,0.0002]
[1751560232280,0.66161916,109360.0,109350.0,0.0002]
[1751560232490,1.03661353,109360.0,109350.0,0.0002]
[1751560232689,0.19204388,109350.0,109340.0,0.13004988]
[1751560232892,0.56703825,109350.0,109340.0,0.13919566]
[1751560233091,0.56703825,109350.0,109340.0,0.19206145]
[1751560233367,0.57618294,109350.0,109340.0,0.19206145]
[1751560233708,0.02743616,109340.0,109330.0,0.48235101]
[1751560233905,0.21949753,109340.0,109330.0,0.48235101]
[1751560234144,0.02743616,109340.0,109330.0,0.42746063]
[1751560234682,0.03658177,109340.0,109330.0,0.42746063]
[1751560235041,0.03658177,109340.0,109330.0,0.42846063]
[1751560235465,0.03658177,109340.0,109330.0,0.35527093]
[1751560235668,0.03658177,109340.0,109330.0,0.35627093]
[1751560236272,0.02743616,109340.0,109330.0,0.35627093]
[1751560236975,0.03658177,109340.0,109330.0,0.35627093]
[1751560237532,0.03658177,109340.0,109330.0,0.35527093]
[1751560237731,0.04572747,109340.0,109330.0,0.35527093]
[1751560237965,0.22864314,109340.0,109330.0,0.35527093]
[1751560238356,0.22864373,109340.0,109330.0,0.35527093]
[1751560238535,0.57620152,109340.0,109330.0,0.101]
[1751560238724,0.60935582,109340.0,109330.0,0.1]
[1751560238910,0.58945582,109340.0,109330.0,0.1]
[1751560239134,0.56805582,109340.0,109330.0,0.1]
[1751560239555,0.20220698,109340.0,109330.0,0.34492538]
[1751560239762,0.02231607,109360.0,109350.0,0.19204355]
[1751560239965,0.00954345,109360.0,109350.0,1.16864814]
[1751560240224,0.02783108,109360.0,109350.0,0.87403215]
[1751560240354,0.2107133,109360.0,109350.0,0.36181334]
[1751560240685,0.40282545,109360.0,109350.0,0.35166873]
[1751560240860,0.39368151,109360.0,109350.0,0.3424697]
[1751560241066,0.03697494,109360.0,109350.0,0.3424697]
[1751560241526,0.21985716,109360.0,109350.0,0.33332534]
[1751560241658,0.5958522,109360.0,109350.0,0.32418073]
[1751560241910,0.5958522,109360.0,109350.0,0.34246994]
[1751560242308,0.5958522,109360.0,109350.0,0.35161438]
[1751560242719,0.58670851,109360.0,109350.0,0.33332542]
[1751560243020,0.58670851,109360.0,109350.0,0.24188849]
[1751560243437,0.57756465,109360.0,109350.0,0.2327438]
[1751560243850,0.57756465,109360.0,109350.0,0.2105438]
[1751560244317,0.57756465,109360.0,109350.0,0.21968849]
[1751560244548,0.39468201,109360.0,109350.0,0.25153301]
[1751560244935,0.39468151,109360.0,109350.0,0.26067737]
[1751560245155,0.00140001,109360.0,109350.0,0.81483922]
[1751560245400,0.00140001,109360.0,109350.0,0.8697296]
[1751560245607,0.00140001,109360.0,109350.0,0.8972166]
[1751560246391,0.00040001,109360.0,109350.0,0.84232622]
[1751560246593,0.00040001,109360.0,109350.0,0.76913652]
[1751560247132,0.00954345,109360.0,109350.0,0.39414215]
[1751560247321,0.00954336,109360.0,109350.0,0.36665515]
[1751560247548,0.0186868,109360.0,109350.0,0.36665515]